bitfinex/quotes_BTCUSD_20250110
["timestamp","ask_amount","ask_price","bid_price","bid_amount"]
[1736533341279,0.209831,95315.0,95292.0,0.209879]
[1736533341628,0.15,95314.0,95292.0,0.209879]
[1736533341760,0.15,95312.0,95292.0,0.209879]
[1736533341968,0.15,95312.0,95293.0,0.209879]
[1736533342348,0.15,95312.0,95294.0,0.209876]
[1736533342777,0.209828,95316.0,95294.0,0.26228158]
[1736533342979,0.15,95315.0,95294.0,0.209876]
[1736533343792,0.15,95313.0,95294.0,0.209876]
[1736533344080,0.15,95310.0,95292.0,0.20988]
[1736533345066,0.15,95308.0,95289.0,0.209886]
[1736533345263,0.15,95308.0,95287.0,0.10429976]
[1736533345422,0.15,95308.0,95290.0,0.209885]
[1736533345616,0.15,95308.0,95293.0,0.209879]
[1736533345827,0.15,95313.0,95293.0,0.199879]
[1736533346028,0.15,95313.0,95295.0,0.209874]
[1736533346429,0.15,95311.0,95295.0,0.209874]
[1736533346652,0.15,95308.0,95292.0,0.002]
[1736533346884,0.00952,95319.0,95292.0,0.002]
[1736533346885,0.02587909,95330.0,95294.0,0.209876]
[1736533347083,0.1,95345.0,95301.0,0.20986]
[1736533347289,0.209801,95328.0,95302.0,0.0503729]
[1736533347519,0.15,95324.0,95307.0,0.209847]
[1736533347747,0.15,95315.0,95274.0,0.1]
[1736533347948,0.00952,95329.0,95270.0,0.1895692]
[1736533347949,0.15,95313.0,95293.0,0.003]
[1736533348120,0.15,95311.0,95293.0,0.003]
[1736533348335,0.15,95312.0,95290.0,0.02066704]
[1736533348600,0.15,95312.0,95296.0,0.209871]
[1736533348803,0.00952,95327.0,95298.0,0.209867]
[1736533348976,0.15,95322.0,95303.0,0.209856]
[1736533349456,0.209806,95326.0,95303.0,0.209856]
[1736533349457,0.15,95326.0,95307.0,0.209846]
[1736533349852,0.15,95324.0,95307.0,0.209846]
[1736533350670,0.15,95324.0,95303.0,0.209856]
[1736533350877,0.15,95324.0,95304.0,0.01047107]
[1736533351084,0.15,95326.0,95308.0,0.0779]
[1736533351284,0.023,95323.0,95308.0,0.0779]
[1736533351688,0.15,95324.0,95308.0,0.0779]
[1736533351916,0.0017,95344.0,95310.0,0.1895692]
[1736533352106,0.0017,95344.0,95312.0,0.0455]
[1736533352107,0.10429976,95337.0,95312.0,0.0455]
[1736533352385,0.173,95334.0,95308.0,0.0779]
[1736533352622,0.173,95332.0,95308.0,0.0779]
[1736533352836,0.173,95322.0,95308.0,0.0779]
[1736533353068,0.27808496,95322.0,95308.0,0.0779]
[1736533353280,0.173,95320.0,95308.0,0.0779]
[1736533353841,0.173,95320.0,95308.0,0.0799]
[1736533354056,0.023,95317.0,95308.0,0.0799]
[1736533354270,0.209817,95321.0,95307.0,0.002]
[1736533354271,0.023,95308.0,95307.0,0.002]
[1736533355102,0.15,95309.0,95297.0,0.209868]
[1736533355312,0.209829,95316.0,95297.0,0.209868]
[1736533355740,0.15,95316.0,95301.0,0.209861]
[1736533355962,0.15,95316.0,95298.0,0.209867]
[1736533356121,0.15,95316.0,95301.0,0.209859]
[1736533356291,0.15,95316.0,95302.0,0.0010492]
[1736533356535,0.0083,95338.0,95309.0,0.0478]
[1736533356735,0.21808,95338.0,95318.0,0.209821]
[1736533356941,0.21808,95338.0,95319.0,0.0829]
[1736533357539,0.15,95333.0,95319.0,0.0829]
[1736533357933,0.21808,95338.0,95319.0,0.0829]
[1736533358142,0.15,95334.0,95319.0,0.08304828]
[1736533358344,0.20979,95333.0,95319.0,0.08304828]
[1736533358572,0.20979,95333.0,95319.0,0.08404828]
[1736533358813,0.20979,95333.0,95319.0,0.08704828]
[1736533359030,0.15,95334.0,95319.0,0.08404828]
[1736533359267,0.15,95337.0,95319.0,0.08404828]
[1736533359394,0.210788,95334.0,95319.0,0.08404828]
[1736533359595,0.209788,95334.0,95319.0,0.08404828]
[1736533359820,0.209788,95334.0,95319.0,0.08304828]
[1736533360228,0.209788,95334.0,95319.0,0.08504828]
[1736533360452,0.173,95337.0,95319.0,0.08504828]
[1736533360610,0.0083,95338.0,95319.0,0.08304828]
[1736533360815,0.0083,95338.0,95320.0,0.00104896]
[1736533361037,0.0083,95338.0,95336.0,0.209783]
[1736533362222,0.0083,95338.0,95337.0,0.23534849]
[1736533362427,0.0083,95338.0,95337.0,0.23429976]
[1736533365021,0.0093,95338.0,95337.0,0.23829976]
[1736533365262,0.0093,95338.0,95337.0,0.31717473]
[1736533365404,0.0093,95338.0,95337.0,0.32217473]
[1736533366736,0.0093,95338.0,95337.0,1.82217473]
[1736533367974,0.0093,95338.0,95337.0,1.92217473]
[1736533369109,0.0093,95338.0,95337.0,0.42217473]
[1736533371995,0.0093,95338.0,95337.0,0.24329976]
[1736533373225,0.0017,95344.0,95343.0,0.388668]
[1736533373428,0.0017,95344.0,95343.0,0.49296776]
[1736533373652,0.0019,95363.0,95350.0,0.1]
[1736533373854,0.0019,95363.0,95350.0,0.49400119]
[1736533374063,0.0019,95363.0,95350.0,0.49295276]
[1736533374639,0.0019,95363.0,95350.0,0.54005276]
[1736533374840,0.0019,95363.0,95350.0,0.64005276]
[1736533375003,0.0019,95363.0,95350.0,0.7445008]
[1736533375576,0.0019,95363.0,95362.0,0.1]
[1736533375767,0.0019,95363.0,95362.0,0.49547501]
[1736533375951,0.0019,95363.0,95362.0,0.49442676]
[1736533376401,0.0019,95363.0,95362.0,0.64172676]
[1736533376577,0.0019,95363.0,95362.0,0.74602652]
[1736533376778,0.0019,95363.0,95362.0,2.24602652]
[1736533376989,0.0001712,95403.0,95374.0,0.3886]
[1736533377219,0.0001712,95403.0,95374.0,0.49289976]
[1736533377606,0.0001712,95403.0,95374.0,2.09289976]
[1736533377811,0.0001708,95390.0,95374.0,2.19719952]
[1736533378544,0.0001708,95390.0,95374.0,2.10788416]
[1736533378775,0.0001708,95390.0,95374.0,2.20788416]
[1736533379158,2e-07,95376.0,95375.0,0.2]
[1736533379357,0.0001708,95390.0,95389.0,0.437167]
[1736533379561,0.0001708,95390.0,95389.0,0.54146676]
[1736533379866,0.0001708,95390.0,95389.0,2.04146676]
[1736533380073,0.0001712,95403.0,95402.0,0.209639]
[1736533380270,0.0001712,95403.0,95402.0,0.31393876]
[1736533380484,0.0001712,95403.0,95402.0,0.40726174]
[1736533380708,0.00066413,95403.0,95402.0,0.40726174]
[1736533380927,0.00066413,95403.0,95402.0,1.90726174]
[1736533381349,0.00066413,95403.0,95402.0,1.93227374]
[1736533381562,0.00066413,95403.0,95402.0,1.82797398]
[1736533381713,0.00066413,95403.0,95402.0,0.004]
[1736533382110,0.00066413,95403.0,95402.0,0.02362887]
[1736533382295,0.00066413,95403.0,95402.0,0.004]
[1736533382925,0.00066413,95403.0,95402.0,0.013]
[1736533383135,0.00066413,95403.0,95402.0,0.004]
[1736533383340,0.00066413,95403.0,95402.0,0.006]
[1736533383548,0.00066413,95403.0,95402.0,0.011]
[1736533383966,0.00066413,95403.0,95402.0,0.006]
[1736533384325,0.00066413,95403.0,95402.0,0.009]
[1736533384721,0.00066413,95403.0,95402.0,0.003]
[1736533385125,0.00066413,95403.0,95402.0,0.005]
[1736533385333,0.00066413,95403.0,95402.0,0.003]
[1736533385774,0.00066413,95403.0,95402.0,0.006]
[1736533386002,0.00066413,95403.0,95402.0,0.003]
[1736533386217,0.00066413,95403.0,95402.0,0.14787668]
[1736533386417,0.00066413,95403.0,95402.0,0.15087668]
[1736533386621,0.00066413,95403.0,95402.0,0.14987668]
[1736533387113,0.00066413,95403.0,95402.0,0.14787668]
[1736533387546,0.00066413,95403.0,95394.0,0.02099264]
[1736533387755,0.00066413,95403.0,95380.0,0.13788475]
[1736533387756,0.209657,95394.0,95380.0,0.13788475]
[1736533387936,0.15,95391.0,95375.0,0.209698]
[1736533388319,0.0237852,95402.0,95375.0,0.209698]
[1736533388520,0.0007852,95402.0,95381.0,0.209683]
[1736533388732,0.15,95396.0,95381.0,0.209683]
[1736533388929,0.15,95394.0,95381.0,0.209683]
[1736533389407,0.209658,95393.0,95375.0,0.209698]
[1736533389584,0.209658,95393.0,95380.0,0.214687]
[1736533389798,0.15,95394.0,95380.0,0.214687]
[1736533390205,0.15,95396.0,95380.0,0.209687]
[1736533390615,0.15,95396.0,95388.0,0.209668]
[1736533390818,0.00066413,95403.0,95394.0,0.209655]
[1736533390980,0.00066413,95403.0,95390.0,0.209664]
[1736533391181,0.00066413,95403.0,95398.0,0.209646]
[1736533391802,0.00066413,95403.0,95402.0,0.209639]
[1736533392215,0.00066413,95403.0,95402.0,0.31393876]
[1736533392508,0.00066413,95403.0,95402.0,0.5004008]
[1736533392707,0.00066413,95403.0,95402.0,2.0004008]
[1736533393356,0.0763,95467.0,95431.0,0.285875]
[1736533393565,0.209506,95463.0,95431.0,0.42876226]
[1736533394191,8e-07,95433.0,95432.0,0.1]
[1736533394379,8e-07,95433.0,95432.0,0.20534717]
[1736533394599,4e-07,95434.0,95433.0,0.409571]
[1736533394736,0.0001706,95471.0,95441.0,0.409553]
[1736533394918,0.0001706,95471.0,95441.0,0.51385276]
[1736533395742,0.0001706,95471.0,95441.0,0.41385276]
[1736533395950,0.0001706,95471.0,95441.0,0.51385276]
[1736533396158,6e-07,95442.0,95441.0,0.51385276]
[1736533396377,6e-07,95442.0,95441.0,0.58619374]
[1736533396574,6e-07,95442.0,95441.0,1.99219374]
[1736533396777,6e-07,95442.0,95441.0,1.89219374]
[1736533397361,6e-07,95442.0,95441.0,1.90119374]
[1736533397539,6e-07,95442.0,95441.0,1.89219374]
[1736533397764,6e-07,95442.0,95441.0,0.38619374]
[1736533397968,6e-07,95442.0,95441.0,0.39519374]
[1736533398189,0.0050006,95442.0,95441.0,0.38619374]
[1736533398400,0.0050006,95442.0,95441.0,0.49519374]
[1736533398978,6e-07,95442.0,95441.0,0.82099374]
[1736533399153,6e-07,95442.0,95441.0,0.57099374]
[1736533399361,0.0001706,95471.0,95446.0,0.309542]
[1736533399538,0.0001706,95471.0,95446.0,0.51814152]
[1736533400175,0.0001706,95471.0,95446.0,0.61814152]
[1736533400594,0.0001706,95471.0,95446.0,0.62414152]
[1736533401385,0.0001706,95471.0,95446.0,2.13314152]
[1736533401604,0.0001706,95471.0,95446.0,2.1639843]
[1736533403154,0.0001706,95471.0,95446.0,0.5639843]
[1736533403307,0.0001706,95471.0,95446.0,0.70083526]
[1736533403959,0.0001706,95471.0,95446.0,0.60083526]
[1736533404194,0.0001706,95471.0,95446.0,0.5639843]
[1736533404833,0.15,95469.0,95446.0,0.35968454]
[1736533405055,0.15,95465.0,95446.0,0.32884176]
[1736533405555,0.15,95461.0,95446.0,0.015]
[1736533405949,0.15,95461.0,95446.0,0.009]
[1736533406179,0.15,95461.0,95446.0,0.013]
[1736533406402,0.0001706,95471.0,95446.0,0.16155683]
[1736533406873,0.0001706,95471.0,95446.0,0.15755683]
[1736533407095,0.0001706,95471.0,95446.0,0.25155683]
[1736533407351,0.0001706,95471.0,95446.0,0.25650926]
[1736533407551,0.0001706,95471.0,95446.0,1.75650926]
[1736533408235,0.0001706,95471.0,95446.0,1.75050926]
[1736533408463,0.0001706,95471.0,95446.0,1.74750926]
[1736533408700,0.0001706,95471.0,95446.0,1.75350926]
[1736533409064,0.0001706,95471.0,95446.0,1.75250926]
[1736533409275,0.0001706,95471.0,95446.0,1.60929976]
[1736533409419,0.20949,95470.0,95446.0,0.10429976]
[1736533409630,0.15,95460.0,95446.0,0.006]
[1736533410207,0.15,95460.0,95446.0,0.009]
[1736533410426,0.15,95456.0,95446.0,0.003]
[1736533410725,0.15,95456.0,95446.0,0.006]
[1736533411172,0.15,95448.0,95446.0,0.003]
[1736533411342,0.0009558,95447.0,95446.0,0.006]
[1736533411568,0.0001706,95447.0,95446.0,0.006]
[1736533411751,0.0001706,95447.0,95446.0,0.003]
[1736533411954,0.0001706,95447.0,95446.0,0.00404757]
[1736533412152,0.0001706,95447.0,95446.0,0.003]
[1736533412559,0.0001706,95447.0,95436.0,0.02097485]
[1736533412560,0.0001706,95447.0,95433.0,0.20957]
[1736533412884,0.0001706,95447.0,95436.0,0.209564]
[1736533413171,0.0001706,95447.0,95436.0,0.31386376]
[1736533413787,0.0001706,95447.0,95436.0,0.39027223]
[1736533414399,0.0001706,95447.0,95434.0,0.001]
[1736533414605,0.209542,95446.0,95434.0,0.001]
[1736533415010,0.209542,95446.0,95432.0,0.209571]
[1736533415228,0.209542,95446.0,95432.0,0.419143]
[1736533415437,0.0001706,95447.0,95436.0,0.210563]
[1736533415644,0.209544,95445.0,95436.0,0.001]
[1736533415940,0.209544,95445.0,95430.0,0.209576]
[1736533416167,0.209544,95445.0,95432.0,0.001]
[1736533416523,0.209544,95445.0,95430.0,0.209576]
[1736533417045,0.209544,95445.0,95436.0,0.001]
[1736533417285,0.15,95444.0,95436.0,0.001]
[1736533417693,0.0001706,95447.0,95436.0,0.001]
[1736533417866,0.0001706,95447.0,95438.0,0.20956]
[1736533418207,0.0001706,95447.0,95443.0,0.209549]
[1736533418413,0.0001706,95447.0,95444.0,1.5]
[1736533418861,0.0001706,95447.0,95443.0,0.209549]
[1736533418862,0.0001706,95447.0,95443.0,0.419097]
[1736533419018,0.0001706,95447.0,95445.0,0.209544]
[1736533419237,0.0001706,95447.0,95446.0,1.50104755]
[1736533419443,0.0001706,95447.0,95446.0,1.60429976]
[1736533419853,0.0001706,95447.0,95446.0,1.5]
[1736533420792,0.0001706,95447.0,95445.0,0.209544]
[1736533420998,0.0001706,95447.0,95446.0,0.10534731]
[1736533421139,0.0001706,95447.0,95446.0,1.60534731]
[1736533421336,0.0001706,95447.0,95446.0,1.75069976]
[1736533421516,0.0001706,95447.0,95446.0,1.75269976]
[1736533421932,0.0001706,95447.0,95446.0,1.75369976]
[1736533422127,0.0001706,95447.0,95446.0,1.85799952]
[1736533422537,0.0001706,95447.0,95446.0,1.85499952]
[1736533422748,0.0001706,95447.0,95446.0,1.86099952]
[1736533423645,0.0001706,95447.0,95446.0,1.86299952]
[1736533423789,0.0001706,95447.0,95446.0,1.86099952]
[1736533424229,0.0001706,95447.0,95446.0,1.86999952]
[1736533425078,0.0001706,95471.0,95450.0,0.1]
[1736533425195,0.0001706,95471.0,95470.0,0.388289]
[1736533425196,5.1e-07,95471.0,95470.0,0.388289]
[1736533425410,0.20937,95525.0,95485.0,0.209456]
[1736533425630,0.0784,95527.0,95498.0,0.209428]
[1736533425881,0.0457706,95529.0,95498.0,0.33467056]
[1736533426031,0.2559178,95529.0,95498.0,0.33467056]
[1736533426232,0.209372,95524.0,95498.0,0.33467056]
[1736533426640,0.209382,95520.0,95498.0,0.33467056]
[1736533426835,0.15,95519.0,95498.0,0.33467056]
[1736533427065,0.0007852,95518.0,95498.0,0.31372776]
[1736533427269,0.15,95515.0,95494.0,0.209436]
[1736533427426,0.15,95515.0,95494.0,0.31373576]
[1736533427631,0.15,95511.0,95498.0,0.007]
[1736533427855,0.15,95511.0,95491.0,0.209443]
[1736533428051,0.15,95511.0,95492.0,0.209441]
[1736533428679,0.15,95511.0,95498.0,0.008]
[1736533429070,0.209409,95507.0,95498.0,0.008]
[1736533429276,0.15,95506.0,95498.0,0.008]
[1736533430027,0.15,95506.0,95490.0,0.209445]
[1736533430166,0.2296,95511.0,95498.0,0.003]
[1736533430370,0.15,95507.0,95498.0,0.003]
[1736533430615,0.15,95507.0,95490.0,0.209445]
[1736533430813,0.15,95507.0,95498.0,0.002]
[1736533431023,0.15,95503.0,95498.0,0.003]
[1736533431230,0.15,95503.0,95498.0,0.002]
[1736533431590,0.209424,95500.0,95498.0,0.004]
[1736533431788,0.1501706,95499.0,95498.0,0.002]
[1736533432289,0.1501706,95499.0,95486.0,0.209452]
[1736533432500,0.1501706,95499.0,95498.0,0.001]
[1736533432967,0.1501706,95499.0,95486.0,0.209452]
[1736533433196,0.1501706,95499.0,95498.0,0.001]
[1736533433637,0.1501706,95499.0,95486.0,0.209452]
[1736533433835,0.1501706,95499.0,95479.0,0.0207115]
[1736533434063,0.1501706,95499.0,95478.0,0.20947]
[1736533434064,0.20944,95493.0,95478.0,0.20947]
[1736533434938,0.15,95492.0,95470.0,0.01029945]
[1736533435158,0.209428,95498.0,95470.0,0.01029945]
[1736533435159,0.15,95481.0,95470.0,0.01029945]
[1736533435453,0.209476,95476.0,95470.0,0.01029945]
[1736533435669,0.209476,95476.0,95465.0,0.2095]
[1736533436327,0.209476,95476.0,95470.0,0.003]
[1736533436549,0.15,95479.0,95470.0,0.003]
[1736533436696,0.15,95477.0,95470.0,0.003]
[1736533436904,0.15,95477.0,95465.0,0.2095]
[1736533437104,0.15,95477.0,95465.0,0.2135]
[1736533437512,0.15,95477.0,95470.0,0.005]
[1736533437914,0.15,95477.0,95465.0,0.2135]
[1736533438156,0.15,95477.0,95468.0,0.209492]
[1736533438339,0.209476,95476.0,95465.0,0.2185]
[1736533438535,0.15,95477.0,95465.0,0.2135]
[1736533438753,0.15,95477.0,95465.0,0.004]
[1736533438958,0.209476,95476.0,95458.0,0.00104737]
[1736533439131,0.209476,95476.0,95459.0,0.20859952]
[1736533439336,0.209476,95476.0,95470.0,0.004]
[1736533439804,0.209476,95476.0,95463.0,0.209503]
[1736533440181,0.35947,95479.0,95460.0,1.5]
[1736533440376,0.209449,95489.0,95461.0,0.10534713]
[1736533440639,0.15,95486.0,95473.0,0.209481]
[1736533441169,0.15,95486.0,95471.0,0.209487]
[1736533441369,0.209465,95482.0,95470.0,0.209489]
[1736533441732,0.00948,95496.0,95463.0,0.001]
[1736533441733,0.15,95488.0,95477.0,0.209472]
[1736533441871,0.15,95486.0,95465.0,0.2095]
[1736533442057,0.15,95486.0,95467.0,0.209496]
[1736533442263,0.15,95486.0,95469.0,0.209492]
[1736533442484,0.15,95484.0,95469.0,0.31379176]
[1736533442887,0.15,95484.0,95473.0,0.209482]
[1736533443245,0.209461,95483.0,95470.0,0.209489]
[1736533443475,0.209461,95483.0,95470.0,0.22638005]
[1736533444294,0.15,95486.0,95473.0,0.001]
[1736533444501,0.15,95484.0,95473.0,0.001]
[1736533444991,0.15,95484.0,95473.0,0.210481]
[1736533445138,0.01040088,95496.0,95474.0,0.10429976]
[1736533445346,0.0001706,95499.0,95480.0,0.18991737]
[1736533445581,0.0001706,95499.0,95481.0,0.00104708]
[1736533445582,0.209428,95498.0,95481.0,0.00104708]
[1736533445774,0.209428,95498.0,95480.0,0.10429976]
[1736533445981,0.0007852,95497.0,95471.0,0.209487]
[1736533446184,0.15,95488.0,95472.0,1.5]
[1736533446393,0.15,95481.0,95463.0,0.0763]
[1736533446752,0.15,95481.0,95464.0,0.10429976]
[1736533446960,0.15,95479.0,95463.0,0.0763]
[1736533447178,0.15,95479.0,95461.0,0.13686676]
[1736533447385,0.15,95479.0,95462.0,0.10429976]
[1736533447802,0.15,95477.0,95462.0,1.60429976]
[1736533449417,0.00075,95463.0,95462.0,1.60429976]
[1736533449823,0.00075,95463.0,95462.0,1.70859952]
[1736533450363,0.00075,95463.0,95462.0,1.60429976]
[1736533450809,0.00075,95463.0,95462.0,0.10829976]
[1736533450993,0.00075,95463.0,95462.0,0.10729976]
[1736533451379,0.00075,95463.0,95462.0,1.60929976]
[1736533451779,0.00075,95463.0,95462.0,1.61329976]
[1736533452252,0.00075,95463.0,95462.0,1.71759952]
[1736533452426,0.00075,95463.0,95462.0,0.009]
[1736533452603,0.00075,95463.0,95462.0,0.004]
[1736533453004,0.02375,95463.0,95462.0,0.007]
[1736533453227,0.02375,95463.0,95457.0,0.00014791]
[1736533453228,0.023,95461.0,95457.0,0.00014791]
[1736533453455,0.359516,95458.0,95457.0,0.00014791]
[1736533453825,0.48681576,95458.0,95457.0,0.00014791]
[1736533454031,0.56391576,95458.0,95457.0,0.00014791]
[1736533454339,0.62975587,95458.0,95457.0,0.00014791]
[1736533454531,0.67895587,95458.0,95457.0,0.00014791]
[1736533454942,0.359584,95427.0,95423.0,0.0001704]
[1736533455713,0.38934904,95427.0,95423.0,0.0001704]
[1736533455920,0.41234904,95427.0,95423.0,0.0001704]
[1736533456124,0.54901052,95427.0,95423.0,0.0001704]
[1736533456324,0.48767196,95426.0,95423.0,0.00031868]
[1736533456496,0.76309907,95426.0,95423.0,0.00031868]
[1736533456697,0.69725896,95426.0,95423.0,0.00031868]
[1736533457116,0.38259,95424.0,95423.0,0.00031868]
[1736533457366,0.41392131,95424.0,95423.0,0.00031868]
[1736533457575,0.41495172,95424.0,95423.0,0.00031868]
[1736533457787,0.55058279,95424.0,95423.0,0.00031868]
[1736533458843,0.65058279,95424.0,95423.0,0.00031868]
[1736533459859,0.359626,95408.0,95403.0,0.0001704]
[1736533460069,0.382626,95408.0,95403.0,0.0001704]
[1736533460292,0.44631903,95408.0,95403.0,0.0001704]
[1736533460466,0.42331903,95408.0,95403.0,0.0001704]
[1736533460695,0.359626,95408.0,95403.0,0.0001704]
[1736533461049,0.153,95408.0,95403.0,0.0001704]
[1736533461477,0.15,95408.0,95403.0,0.0001704]
[1736533462168,0.154,95408.0,95403.0,0.0001704]
[1736533462966,0.004,95408.0,95406.0,0.0802]
[1736533463535,0.15,95418.0,95406.0,0.0802]
[1736533463734,0.001,95408.0,95406.0,0.0802]
[1736533464151,0.001,95408.0,95403.0,0.0001704]
[1736533464152,0.15,95416.0,95407.0,0.0011704]
[1736533464353,0.209615,95413.0,95407.0,0.0011704]
[1736533464577,0.15,95416.0,95407.0,0.0031704]
[1736533464787,0.15,95414.0,95407.0,0.0021704]
[1736533464990,0.15,95414.0,95407.0,0.0001704]
[1736533466206,0.15,95414.0,95407.0,0.0031704]
[1736533466647,0.15,95408.0,95407.0,0.0001704]
[1736533468106,0.152,95408.0,95407.0,0.0001704]
[1736533468534,0.175,95408.0,95407.0,0.0001704]
[1736533468769,0.23947823,95408.0,95407.0,0.0001704]
[1736533468977,0.175,95408.0,95407.0,0.0001704]
[1736533469156,0.1757852,95408.0,95407.0,0.0001704]
[1736533469490,0.20814692,95408.0,95407.0,0.0001704]
[1736533469693,0.23869303,95408.0,95407.0,0.0001704]
[1736533469908,0.23669303,95408.0,95407.0,0.0011704]
[1736533470104,0.24724994,95408.0,95407.0,0.0004204]
[1736533470325,0.25868994,95408.0,95407.0,0.0004204]
[1736533470551,0.023,95405.0,95403.0,0.0001704]
[1736533470815,0.23747823,95404.0,95403.0,0.0001704]
[1736533471014,0.08669303,95404.0,95403.0,0.0001704]
[1736533471191,0.08747823,95404.0,95403.0,0.0001704]
[1736533471427,0.23747823,95404.0,95403.0,0.0001704]
[1736533471627,0.23669303,95404.0,95403.0,0.0001704]
[1736533472365,0.34099279,95404.0,95403.0,0.0001704]
[1736533473091,0.34099279,95404.0,95368.0,0.0001704]
[1736533473092,0.359648,95398.0,95368.0,0.0001704]
[1736533473435,0.359711,95369.0,95368.0,0.0001704]
[1736533473691,0.359711,95369.0,95368.0,0.00066333]
[1736533474808,0.359711,95369.0,95368.0,0.00366333]
[1736533475010,0.39507272,95369.0,95368.0,0.00366333]
[1736533475211,0.37304719,95369.0,95368.0,0.00366333]
[1736533476121,0.37304719,95369.0,95368.0,0.00066333]
[1736533476564,0.37104719,95369.0,95368.0,0.00066333]
[1736533476769,0.37604719,95369.0,95368.0,0.00066333]
[1736533476968,0.37004719,95369.0,95368.0,0.00066333]
[1736533477268,0.37304719,95369.0,95368.0,0.00066333]
[1736533478137,0.37004719,95369.0,95368.0,0.00166333]
[1736533478297,0.37104719,95369.0,95368.0,0.00166333]
[1736533479343,0.37104719,95369.0,95368.0,0.00066333]
[1736533479979,0.37004719,95369.0,95368.0,0.00066333]
[1736533480334,0.37304719,95369.0,95368.0,0.00066333]
[1736533480735,0.209716,95367.0,95366.0,0.0001704]
[1736533480943,0.359716,95367.0,95366.0,0.00031876]
[1736533482410,0.48701576,95367.0,95366.0,0.00031876]
[1736533482784,0.51834707,95367.0,95366.0,0.00031876]
[1736533482979,0.173,95366.0,95351.0,0.18238118]
[1736533483315,0.35623107,95367.0,95351.0,0.18238118]
[1736533483316,0.382749,95352.0,95351.0,0.18238118]
[1736533483520,0.48704876,95352.0,95351.0,0.18238118]
[1736533485207,0.48704876,95352.0,95340.0,0.0001704]
[1736533485208,0.51838007,95352.0,95340.0,0.0001704]
[1736533485376,0.173,95340.0,95311.0,0.0001704]
[1736533485538,0.209797,95330.0,95311.0,0.0001704]
[1736533485751,0.31409676,95330.0,95329.0,0.00031841]
[1736533486425,0.33709676,95330.0,95329.0,0.00031841]
[1736533487812,0.48709676,95330.0,95329.0,0.00031841]
[1736533488212,0.52142807,95330.0,95329.0,0.00031841]
[1736533488416,0.48709676,95330.0,95329.0,0.00031841]
[1736533488616,0.49761443,95330.0,95329.0,0.00031841]
[1736533488872,0.50161443,95330.0,95329.0,0.00031841]
[1736533490265,0.49761443,95330.0,95329.0,0.00031841]
[1736533490727,0.50261443,95330.0,95329.0,0.00031841]
[1736533490938,0.52994574,95330.0,95329.0,0.00031841]
[1736533491164,0.57130746,95330.0,95329.0,0.00031841]
[1736533491577,0.382801,95328.0,95311.0,0.0001704]
[1736533491744,0.48710076,95328.0,95311.0,0.0001704]
[1736533492527,0.49654076,95328.0,95311.0,0.0001704]
[1736533493384,0.52787207,95328.0,95311.0,0.0001704]
[1736533493594,0.52887207,95328.0,95311.0,0.0001704]
[1736533494414,0.53487207,95328.0,95327.0,0.0011704]
[1736533496311,0.53687207,95328.0,95327.0,0.0011704]
[1736533496634,0.50554076,95328.0,95327.0,0.0011704]
[1736533496894,0.50354076,95328.0,95327.0,0.0011704]
[1736533497108,0.50454076,95328.0,95327.0,0.0011704]
[1736533498152,0.53587207,95328.0,95327.0,0.0011704]
[1736533498357,0.173,95327.0,95311.0,0.0001704]
[1736533498567,0.382837,95312.0,95311.0,0.0001704]
[1736533498794,0.359859,95302.0,95301.0,8.53e-05]
[1736533498986,0.49659876,95302.0,95301.0,8.53e-05]
[1736533499602,0.392299,95302.0,95301.0,8.53e-05]
[1736533500231,0.402932,95302.0,95301.0,8.53e-05]
[1736533500639,0.379932,95302.0,95301.0,8.53e-05]
[1736533501290,0.160633,95302.0,95301.0,8.53e-05]
[1736533501700,0.162633,95302.0,95301.0,8.53e-05]
[1736533501905,0.160633,95302.0,95301.0,0.0010853]
[1736533502310,0.162633,95302.0,95301.0,0.0010853]
[1736533502533,0.160633,95302.0,95301.0,0.0010853]
[1736533502952,0.160633,95302.0,95301.0,0.0020853]
[1736533503163,0.160633,95302.0,95301.0,8.53e-05]
[1736533503164,0.15,95302.0,95301.0,8.53e-05]
[1736533503377,0.01057113,95311.0,95301.0,0.0818853]
[1736533503577,0.001,95302.0,95301.0,0.0818853]
[1736533504190,0.001,95302.0,95301.0,0.33938482]
[1736533504391,0.01082387,95330.0,95316.0,0.0811]
[1736533504566,0.01082387,95330.0,95320.0,0.209817]
[1736533504770,0.00014789,95330.0,95320.0,0.209817]
[1736533504970,0.00014789,95330.0,95317.0,0.209825]
[1736533505741,0.00014789,95330.0,95320.0,0.004]
[1736533505944,0.00014789,95330.0,95326.0,0.209805]
[1736533506183,0.00014789,95330.0,95328.0,0.286901]
[1736533506343,0.00314789,95330.0,95328.0,0.0771]
[1736533507038,0.00314789,95330.0,95317.0,0.0771]
[1736533507251,0.209823,95318.0,95317.0,0.0771]
[1736533507452,0.209823,95318.0,95312.0,0.01915061]
[1736533507453,0.359823,95318.0,95312.0,0.01915061]
[1736533507609,0.359834,95313.0,95312.0,0.01915061]
[1736533507805,0.48713376,95313.0,95312.0,0.01915061]
[1736533508608,0.173,95312.0,95301.0,8.53e-05]
[1736533508814,0.359859,95302.0,95301.0,8.53e-05]
[1736533510374,0.48715876,95302.0,95301.0,8.53e-05]
[1736533510920,0.48715876,95302.0,95301.0,0.0010853]
[1736533511121,0.48715876,95302.0,95301.0,8.53e-05]
[1736533511559,0.49015876,95302.0,95301.0,8.53e-05]
[1736533511761,0.48715876,95302.0,95301.0,8.53e-05]
[1736533512163,0.49015876,95302.0,95301.0,8.53e-05]
[1736533513236,0.38266578,95302.0,95301.0,8.53e-05]
[1736533513355,0.37326578,95302.0,95301.0,8.53e-05]
[1736533513782,0.37526578,95302.0,95301.0,8.53e-05]
[1736533513997,0.37226578,95302.0,95301.0,8.53e-05]
[1736533514203,0.38126578,95302.0,95301.0,0.0010853]
[1736533514403,0.37926578,95302.0,95301.0,0.0010853]
[1736533514615,0.37026578,95302.0,95301.0,8.53e-05]
[1736533514962,0.22126578,95302.0,95301.0,8.53e-05]
[1736533515168,0.49756554,95302.0,95301.0,8.53e-05]